bitfinex-derivatives/quotes_ETHF0:USTF0_20230105
["timestamp","ask_amount","ask_price","bid_price","bid_amount"]
[1672936899613,3.00009162,1248.0,1247.9,9.52821098]
[1672936900350,3.00009162,1248.0,1247.9,17.54121098]
[1672936900561,3.00009162,1248.1,1247.9,18.14215015]
[1672936900876,3.00009162,1248.1,1248.0,2.40266231]
[1672936901714,3.00009162,1248.1,1247.9,19.12446223]
[1672936902660,3.00009162,1248.1,1247.9,16.12346231]
[1672936902872,3.00009162,1248.1,1247.9,19.12446223]
[1672936903189,3.00009162,1248.1,1247.9,16.12346231]
[1672936906441,3.00009162,1248.1,1248.0,1.20079566]
[1672936906762,3.00009162,1248.1,1247.9,16.12346231]
[1672936908019,3.00009162,1248.1,1248.0,3.2078]
[1672936908968,3.00009162,1248.1,1248.0,4.40848863]
[1672936911390,3.00009162,1248.1,1248.0,1.20068863]
[1672936917165,3.00009162,1248.1,1247.9,19.12446223]
[1672936918111,3.00009162,1248.1,1248.0,1.20059476]
[1672936919578,3.00009162,1248.1,1247.9,16.12346231]
[1672936919782,3.00009162,1248.1,1248.0,1.20052522]
[1672936922837,3.00009162,1248.1,1247.9,16.12346231]
[1672936923469,3.00009162,1248.1,1248.0,1.20047854]
[1672936924634,3.00009162,1248.1,1247.9,16.12346231]
[1672936925881,3.00009162,1248.2,1248.0,2.40266231]
[1672936926097,3.00009162,1248.3,1248.1,3.2078]
[1672936926413,3.00009162,1248.3,1248.2,2.70029678]
[1672936926838,5.50009162,1248.3,1248.2,2.70029678]
[1672936927151,3.00009162,1248.3,1248.2,2.70029678]
[1672936934193,3.00009162,1248.4,1248.2,2.70029678]
[1672936934405,2.5,1248.3,1248.2,2.70029678]
[1672936934822,5.50009162,1248.4,1248.2,2.70029678]
[1672936935034,3.00009162,1248.3,1248.2,2.70029678]
[1672936935981,3.00009162,1248.4,1248.2,11.91566231]
[1672936936189,3.00009162,1248.5,1248.3,4.40716059]
[1672936936399,5.50009162,1248.5,1248.4,2.5]
[1672936937136,2.5,1248.5,1248.4,2.5]
[1672936938399,2.99547459,1248.5,1248.4,2.5]
[1672936940498,2.99547459,1248.5,1248.3,6.90716059]
[1672936940918,2.99547459,1248.5,1248.4,2.5]
[1672936944389,6.0941827,1248.6,1248.3,5.7078]
[1672936944600,2.99278669,1248.5,1248.3,5.7078]
[1672936944811,2.5,1248.4,1248.3,5.7078]
[1672936945126,5.49278669,1248.4,1248.3,5.7078]
[1672936945963,2.5,1248.4,1248.3,5.7078]
[1672936946172,2.5,1248.4,1248.3,3.2078]
[1672936946377,5.49278669,1248.4,1248.3,3.2078]
[1672936947016,5.49278669,1248.4,1248.2,2.69936059]
[1672936947432,5.49278669,1248.4,1248.2,1.5]
[1672936948056,5.49278669,1248.4,1248.2,2.69936059]
[1672936949636,5.49278669,1248.4,1248.2,4.49803592]
[1672936950155,5.49278669,1248.4,1248.2,7.70583592]
[1672936950385,2.99278669,1248.4,1248.2,7.69940856]
[1672936952909,5.49278669,1248.5,1248.3,1.19936059]
[1672936954169,2.99278669,1248.4,1248.2,7.69940856]
[1672936954382,2.5,1248.3,1248.2,6.50004797]
[1672936954585,2.99278669,1248.4,1248.2,7.69885543]
[1672936954797,2.99278669,1248.4,1248.3,1.19879271]
[1672936955957,2.99278669,1248.4,1248.2,8.89764814]
[1672936956586,2.99278669,1248.4,1248.3,1.19879271]
[1672936961109,2.99278669,1248.4,1248.3,2.99746804]
[1672936961309,2.99278669,1248.4,1248.3,1.19879271]
[1672936961527,2.99278669,1248.4,1248.3,2.99746804]
[1672936962270,5.49278669,1248.5,1248.3,2.99746804]
[1672936962483,5.49278669,1248.5,1248.4,2.5]
[1672936963952,2.5,1248.5,1248.4,3.69879271]
[1672936964684,6.0941827,1248.6,1248.4,3.69879271]
[1672936965101,10.28739585,1248.6,1248.3,5.49746804]
[1672936965318,2.99722051,1248.4,1248.3,5.49746804]
[1672936965835,2.99722051,1248.4,1248.3,5.49926895]
[1672936966043,5.49722051,1248.4,1248.3,5.49926895]
[1672936968044,2.99722051,1248.4,1248.3,5.49926895]
[1672936969523,6.0941827,1248.5,1248.3,5.49926895]
[1672936969836,2.99812803,1248.4,1248.3,4.29867533]
[1672936975410,2.99812803,1248.4,1248.3,7.50647533]
[1672936975615,2.99812803,1248.4,1248.3,8.11046231]
[1672936975825,2.99812803,1248.4,1248.3,9.91210468]
[1672936977717,2.99812803,1248.4,1248.3,8.11046231]
[1672936979192,2.99812803,1248.4,1248.3,9.91197245]
[1672936979396,2.99812803,1248.4,1248.3,7.41197245]
[1672936979928,2.99812803,1248.4,1248.3,5.00931014]
[1672936983077,2.99812803,1248.4,1248.3,1.80151014]
[1672936986853,2.99812803,1248.4,1248.3,2.40266231]
[1672936987378,2.99812803,1248.4,1248.3,3.82255952]
[1672936988324,2.99812803,1248.4,1248.3,7.03035952]
[1672936988531,2.99812803,1248.4,1248.3,9.53035952]
[1672936990426,2.99812803,1248.5,1248.3,10.12869713]
[1672936990636,2.99812803,1248.5,1248.4,6.70374098]
[1672936990845,6.0941827,1248.6,1248.4,4.30160328]
[1672936991055,2.99814859,1248.5,1248.4,6.70374098]
[1672936992220,2.99814859,1248.5,1248.4,4.9021377]
[1672936992424,2.99814859,1248.5,1248.4,6.70336181]
[1672936992744,2.99814859,1248.5,1248.4,4.30122411]
[1672936994736,2.99814859,1248.5,1248.4,5.50196738]
[1672936994951,2.99814859,1248.5,1248.4,4.30122411]
[1672936996627,2.99814859,1248.5,1248.4,6.70336181]
[1672936996844,2.99814859,1248.5,1248.4,4.30122411]
[1672936997051,2.99814859,1248.5,1248.4,6.70336181]
[1672936997263,2.99814859,1248.5,1248.4,4.30122411]
[1672936997992,2.99814859,1248.5,1248.4,6.70336181]
[1672936998523,2.99814859,1248.5,1248.4,12.9151377]
[1672936998830,6.0941827,1248.7,1248.5,2.5]
[1672936999044,2.5,1248.6,1248.5,5.50114392]
[1672936999254,5.49590202,1248.6,1248.5,8.70894392]
[1672936999678,2.99590202,1248.6,1248.5,8.70894392]
[1672937000510,2.99590202,1248.6,1248.5,7.50848635]
[1672937001455,2.5,1248.7,1248.5,7.50848635]
[1672937001456,5.49590202,1248.7,1248.5,7.50848635]
[1672937001776,5.49590202,1248.7,1248.6,1.19974879]
[1672937002506,2.5,1248.7,1248.6,1.19974879]
[1672937002718,5.49491791,1248.7,1248.6,1.19974879]
[1672937003036,2.5,1248.7,1248.6,1.19974879]
[1672937003250,5.49436082,1248.7,1248.5,16.72123514]
[1672937003451,5.49436082,1248.7,1248.5,13.51343514]
[1672937003660,5.49436082,1248.7,1248.5,16.72123514]
[1672937003878,2.99436082,1248.7,1248.6,3.69974879]
[1672937004823,2.99436082,1248.7,1248.6,6.90754879]
[1672937007031,2.99436082,1248.7,1248.6,3.69974879]
[1672937007344,2.99436082,1248.7,1248.6,6.90754879]
[1672937009335,6.0941827,1248.9,1248.6,6.90754879]
[1672937009336,2.99436082,1248.8,1248.6,6.90754879]
[1672937009546,2.5,1248.7,1248.6,6.90754879]
[1672937009973,5.49436082,1248.8,1248.6,6.90754879]
[1672937011867,2.99436082,1248.8,1248.6,6.90754879]
[1672937012184,5.49436082,1248.8,1248.6,6.90754879]
[1672937013445,2.99436082,1248.8,1248.6,8.70823514]
[1672937013862,2.5,1248.7,1248.6,6.90754879]
[1672937014913,2.99436082,1248.8,1248.6,6.90754879]
[1672937015655,2.99436082,1248.8,1248.6,14.92054879]
[1672937017231,2.99436082,1248.8,1248.6,12.42054879]
[1672937017434,2.99436082,1248.8,1248.6,3.2078]
[1672937017855,2.99436082,1248.7,1248.6,3.20123146]
[1672937018066,2.5,1248.7,1248.6,3.20123146]
[1672937018485,2.5,1248.7,1248.6,4.40098025]
[1672937018695,2.5,1248.7,1248.6,11.21423146]
[1672937019119,2.5,1248.7,1248.6,12.41398025]
[1672937019332,2.99436082,1248.8,1248.6,11.21423146]
[1672937019745,2.99436082,1248.8,1248.7,2.5]
[1672937021648,6.0941827,1248.9,1248.7,2.5]
[1672937022175,2.99091181,1248.8,1248.7,2.5]
[1672937022389,6.0941827,1248.9,1248.7,2.5]
[1672937022589,2.9909065,1248.8,1248.7,2.5]
[1672937023011,6.0941827,1248.9,1248.7,2.5]
[1672937023220,2.99095643,1248.8,1248.7,2.5]
[1672937023645,6.0941827,1248.9,1248.7,2.5]
[1672937024698,6.0941827,1248.9,1248.6,11.21423146]
[1672937024899,2.99175568,1248.7,1248.6,11.21423146]
[1672937026169,2.99175568,1248.7,1248.6,12.41398025]
[1672937031957,2.99175568,1248.7,1248.6,14.2146666]
[1672937033528,2.99175568,1248.7,1248.6,13.01491781]
[1672937033731,2.99175568,1248.8,1248.6,13.01491781]
[1672937033941,5.49175568,1248.8,1248.7,3.69972336]
[1672937034469,2.99175568,1248.8,1248.7,3.69972336]
[1672937034785,2.99175568,1248.9,1248.7,14.71582405]
[1672937034995,5.49175568,1248.9,1248.8,4.40742151]
[1672937035197,2.99175568,1248.9,1248.8,4.40742151]
[1672937036044,6.0941827,1249.0,1248.8,4.40742151]
[1672937036259,2.99497784,1248.9,1248.8,4.40742151]
[1672937036469,2.99497784,1248.9,1248.8,12.42042151]
[1672937036785,2.99497784,1249.0,1248.8,13.02148635]
[1672937036995,2.99497784,1249.0,1248.9,5.50013846]
[1672937037307,2.99497784,1249.0,1248.9,3.69945211]
[1672937039409,5.49497784,1249.1,1248.9,3.69945211]
[1672937039731,2.99497784,1249.0,1248.9,3.69945211]
[1672937040042,2.5,1249.1,1248.9,3.69945211]
[1672937040043,5.49497784,1249.1,1248.9,3.69945211]
[1672937040246,2.99497784,1249.0,1248.9,3.69945211]
[1672937040455,5.49497784,1249.1,1248.9,11.71245211]
[1672937040882,2.99497784,1249.0,1248.9,11.71245211]
[1672937042142,5.49497784,1249.1,1248.9,11.71245211]
[1672937042356,5.49497784,1249.1,1249.0,3.2078]
[1672937042875,2.99497784,1249.1,1249.0,3.2078]
[1672937044764,2.99497784,1249.1,1248.9,10.513]
[1672937045077,2.99094395,1249.0,1248.9,10.513]
[1672937046349,2.99094395,1249.1,1248.9,10.513]
[1672937046555,2.5,1249.0,1248.9,10.513]
[1672937046974,2.99094395,1249.1,1248.9,10.513]
[1672937050024,2.99094395,1249.1,1248.9,11.71245211]
[1672937050548,2.99094395,1249.1,1248.9,10.513]
[1672937050762,2.99094395,1249.2,1249.1,2.5]
[1672937052541,5.49094395,1249.3,1249.1,10.513]
[1672937055385,2.99094395,1249.3,1249.2,3.2078]
[1672937056436,5.49094395,1249.4,1249.2,11.2208]
[1672937056855,5.49094395,1249.4,1249.3,2.5]
[1672937057273,5.49094395,1249.4,1249.2,11.2208]
[1672937057481,5.49094395,1249.4,1249.3,2.5]
[1672937057692,2.5,1249.4,1249.3,2.5]
[1672937058431,5.48687266,1249.4,1249.3,2.5]
[1672937058851,5.48687266,1249.4,1249.2,8.013]
[1672937059394,2.98687266,1249.3,1249.2,8.013]
[1672937060857,5.48687266,1249.4,1249.2,8.013]
[1672937061279,2.98687266,1249.3,1249.2,8.013]
[1672937063167,6.19467266,1249.3,1248.9,6.90725211]
[1672937063481,5.48687266,1249.2,1248.9,6.90725211]
[1672937064106,5.48687266,1249.2,1249.0,8.013]
[1672937064433,2.5,1249.2,1249.1,2.5]
[1672937065158,5.48687266,1249.2,1249.0,8.013]
[1672937067260,2.98687266,1249.1,1249.0,8.013]
[1672937067470,5.48687266,1249.2,1249.0,8.013]
[1672937069258,5.48687266,1249.2,1249.1,2.5]
[1672937069463,2.5,1249.2,1249.1,2.5]
[1672937069674,5.49082361,1249.2,1249.1,2.5]
[1672937069884,2.5,1249.2,1249.1,2.5]
[1672937072840,2.5,1249.2,1249.0,8.013]
[1672937073051,2.99334877,1249.1,1249.0,8.013]
[1672937073359,6.0941827,1249.2,1249.1,2.5]
[1672937074414,6.0941827,1249.2,1249.0,8.013]
[1672937075566,10.28739585,1249.2,1248.9,8.70793846]
[1672937075885,2.99591408,1249.0,1248.9,8.70793846]
[1672937076087,2.99591408,1249.0,1248.9,3.69945211]
[1672937076616,5.49591408,1249.0,1248.9,3.69945211]
[1672937078928,2.99591408,1249.0,1248.9,3.69945211]
[1672937081240,2.99591408,1249.0,1248.9,1.19945211]
[1672937081447,2.99591408,1249.0,1248.9,3.69945211]
[1672937083553,2.99591408,1249.0,1248.9,1.19945211]
[1672937083974,2.99591408,1249.0,1248.9,3.69945211]
[1672937087859,2.99591408,1249.0,1248.9,5.50013846]
[1672937090594,2.99591408,1249.0,1248.9,3.00013846]
[1672937090803,2.99591408,1249.0,1248.9,3.69945211]
[1672937091641,2.99591408,1249.0,1248.9,3.69204627]
[1672937091957,2.99591408,1249.0,1248.9,5.49273262]
[1672937093537,2.99591408,1249.1,1248.9,12.9151377]
[1672937093849,2.99591408,1249.1,1249.0,1.79852274]
[1672937094061,2.99591408,1249.1,1248.9,14.71366044]
[1672937094801,2.99591408,1249.1,1248.9,12.31152274]
[1672937095224,2.99591408,1249.1,1248.9,14.71366044]
[1672937096270,2.99591408,1249.1,1248.9,12.31152274]
[1672937096589,2.99591408,1249.1,1248.9,14.71366044]
[1672937097001,2.99591408,1249.1,1248.9,12.31152274]
[1672937097321,2.99591408,1249.0,1248.9,12.31152274]
[1672937100682,3.5941827,1249.1,1248.9,12.31152274]
[1672937100892,5.49848151,1249.0,1248.9,12.31152274]
[1672937101946,2.99848151,1249.0,1248.9,12.31152274]
[1672937102788,5.0941827,1249.1,1248.9,12.31152274]
[1672937103209,2.99923888,1249.0,1248.9,12.31152274]
[1672937103412,5.49923888,1249.0,1248.9,12.31152274]
[1672937103734,2.99923888,1249.0,1248.9,12.31152274]
[1672937105727,2.99923888,1249.0,1248.9,15.51932274]
[1672937106784,2.99923888,1249.0,1248.9,17.92146044]
[1672937107727,2.99923888,1249.0,1248.9,15.51932274]
[1672937108671,2.99923888,1249.0,1248.9,12.31152274]
[1672937110880,2.99923888,1249.0,1248.9,14.71366044]
[1672937111722,2.99923888,1249.0,1248.9,12.9151377]
[1672937113929,2.99923888,1249.0,1248.9,14.71589249]
[1672937114868,2.99923888,1249.0,1248.9,12.31375479]
[1672937115078,2.99923888,1249.0,1248.9,14.71589249]
[1672937116027,2.99923888,1249.0,1248.9,12.9151377]
[1672937117500,2.99923888,1249.0,1248.9,14.33436366]
[1672937117700,2.99923888,1249.0,1248.9,14.33438434]
[1672937118023,2.99923888,1249.0,1248.9,14.33436349]
[1672937119702,2.99923888,1249.0,1248.9,12.9151377]
[1672937119916,2.99923888,1249.0,1248.9,14.33436024]
[1672937120857,2.99923888,1249.0,1248.9,12.9151377]
[1672937121387,2.99923888,1249.0,1248.9,14.33437806]
[1672937121698,2.99923888,1249.0,1248.9,14.33436414]
[1672937122123,2.99923888,1249.0,1248.9,17.54216414]
[1672937122646,2.99923888,1249.0,1248.9,16.1229377]
[1672937122857,2.99923888,1249.0,1248.9,17.54216143]
[1672937123698,2.99923888,1249.0,1248.9,16.1229377]
[1672937123907,2.99923888,1249.0,1248.9,17.54216204]
[1672937124118,2.99923888,1249.0,1248.9,17.54216203]
[1672937127165,2.99923888,1249.1,1248.9,18.14102425]
[1672937127482,2.99923888,1249.1,1249.0,12.21415076]
[1672937128004,2.99923888,1249.1,1249.0,11.8327692]
[1672937128208,2.99923888,1249.2,1249.0,11.83276734]
[1672937128419,3.5941827,1249.3,1249.1,7.50705038]
[1672937128839,3.5941827,1249.3,1249.2,2.5]
[1672937129474,7.78739585,1249.3,1249.2,2.5]
[1672937130213,3.5941827,1249.3,1249.2,2.5]
[1672937130638,7.78739585,1249.3,1249.2,2.5]
[1672937131263,7.78739585,1249.3,1249.1,2.5]
[1672937131690,3.5941827,1249.3,1249.1,2.5]
[1672937132105,2.5,1249.2,1249.1,2.5]
[1672937132316,2.5,1249.2,1249.0,9.81225038]
[1672937132527,2.99993199,1249.1,1249.0,9.81225038]
[1672937139252,6.0941827,1249.2,1249.0,8.013]
[1672937139780,6.0941827,1249.2,1249.1,2.5]
[1672937140193,3.5941827,1249.2,1249.1,2.5]
[1672937141674,9.3019827,1249.3,1249.1,2.5]
[1672937141888,9.3019827,1249.3,1249.1,4.29925038]
[1672937142102,9.3019827,1249.3,1249.1,2.5]
[1672937142618,13.49519585,1249.3,1249.1,2.5]
[1672937142826,9.3019827,1249.3,1249.1,2.5]
[1672937143248,13.49519585,1249.3,1249.1,2.5]
[1672937143467,9.3019827,1249.3,1249.1,2.5]
[1672937143785,6.0941827,1249.3,1249.1,2.5]
[1672937144093,10.28739585,1249.3,1249.1,2.5]
[1672937145677,2.5,1249.2,1249.1,2.5]
[1672937146516,6.0941827,1249.3,1249.1,4.29925038]
[1672937146726,2.5,1249.2,1249.1,2.5]
[1672937147566,6.0941827,1249.3,1249.1,2.5]
[1672937147775,6.0941827,1249.3,1249.1,4.29925038]
[1672937147977,6.0941827,1249.3,1249.1,2.5]
[1672937148613,2.5,1249.2,1249.1,2.5]
[1672937149983,2.5,1249.2,1249.0,15.42073693]
[1672937150189,3.00039994,1249.1,1249.0,13.02005038]
[1672937153351,6.0941827,1249.2,1249.0,13.02005038]
[1672937153561,3.5941827,1249.2,1249.1,2.5]
[1672937153767,6.0941827,1249.2,1249.1,2.5]
[1672937156081,9.3019827,1249.2,1249.1,2.5]
[1672937158599,6.8019827,1249.2,1249.1,2.5]
[1672937158810,6.0941827,1249.3,1249.1,10.513]
[1672937160393,10.28739585,1249.3,1249.1,10.513]
[1672937160814,6.0941827,1249.3,1249.1,10.513]
[1672937161142,6.0941827,1249.3,1249.1,12.31225038]
[1672937161339,6.0941827,1249.3,1249.1,10.513]
[1672937161549,6.0941827,1249.3,1249.1,12.31225038]
[1672937161864,3.5941827,1249.3,1249.1,12.31225038]
[1672937162497,3.5941827,1249.3,1249.1,10.513]
[1672937162701,3.00035746,1249.2,1249.1,12.31225038]
[1672937162913,3.5941827,1249.3,1249.1,9.81225038]
[1672937163230,2.5,1249.2,1249.1,9.81225038]
[1672937164073,3.5941827,1249.3,1249.1,9.81225038]
[1672937164605,3.5941827,1249.3,1249.2,2.5]
[1672937164810,3.5941827,1249.3,1249.1,9.81225038]
[1672937165018,3.5941827,1249.3,1249.2,2.5]
[1672937165233,3.5941827,1249.3,1249.2,2.4976571]
[1672937168289,3.5941827,1249.3,1249.1,9.81225038]
[1672937168603,7.78739585,1249.3,1249.1,9.81225038]
[1672937168915,6.0941827,1249.2,1249.1,9.81225038]
[1672937169131,6.0941827,1249.2,1249.1,8.013]
[1672937169333,6.0941827,1249.2,1249.1,10.513]
[1672937169543,6.0941827,1249.2,1249.0,7.40773693]
[1672937169861,6.0941827,1249.2,1249.0,13.02005038]
[1672937169862,2.5,1249.1,1249.0,13.02005038]
[1672937171336,6.0941827,1249.2,1249.0,13.02005038]
[1672937171649,6.0941827,1249.2,1249.1,2.5]
[1672937172803,3.5941827,1249.2,1249.1,2.5]
[1672937173641,3.5941827,1249.2,1249.1,4.29925038]
[1672937174168,3.5941827,1249.3,1249.1,4.29925038]
[1672937175012,3.5941827,1249.3,1249.1,2.5]
[1672937175325,3.5941827,1249.3,1249.1,4.29925038]
[1672937176059,3.5941827,1249.3,1249.1,12.31225038]
[1672937176596,3.5941827,1249.3,1249.1,10.513]
[1672937176801,7.78739585,1249.3,1249.1,10.513]
[1672937177435,3.5941827,1249.3,1249.1,10.513]
[1672937178903,3.5941827,1249.3,1249.1,12.31225038]
[1672937180062,7.78739585,1249.3,1249.1,12.31225038]
[1672937182269,6.0941827,1249.2,1249.1,12.31225038]
[1672937183320,3.5941827,1249.2,1249.1,12.31225038]
[1672937183741,7.78739585,1249.3,1249.1,12.31225038]
[1672937184897,3.5941827,1249.2,1249.1,12.31225038]
[1672937185099,6.0941827,1249.2,1249.1,12.31225038]
[1672937186692,6.0941827,1249.2,1249.1,9.81225038]
[1672937187217,7.78739585,1249.3,1249.1,9.81225038]
[1672937187735,3.5941827,1249.3,1249.2,2.5]
[1672937191307,7.78739585,1249.3,1249.2,2.5]
[1672937191517,3.5941827,1249.3,1249.2,2.5]
[1672937192154,3.5941827,1249.3,1249.1,9.81225038]
[1672937192472,7.78739585,1249.3,1249.1,9.81225038]
[1672937192786,2.5,1249.2,1249.1,9.81225038]
[1672937193625,6.0941827,1249.2,1249.1,9.81225038]
[1672937193936,6.0941827,1249.2,1249.1,1.79925038]
[1672937194149,6.0941827,1249.2,1249.0,5.00705038]
[1672937194559,6.0941827,1249.2,1249.0,1.79925038]
[1672937194774,9.3019827,1249.2,1249.0,1.79925038]
[1672937194984,13.49519585,1249.2,1249.0,1.79925038]
[1672937195406,9.3019827,1249.2,1249.0,1.79925038]
[1672937198573,6.0941827,1249.2,1249.0,1.79925038]
[1672937201412,6.0941827,1249.2,1248.9,1.79925038]
[1672937201618,3.00066911,1249.0,1248.9,4.29925038]
[1672937202038,5.50066911,1249.0,1248.9,4.29925038]
[1672937202978,5.50066911,1249.0,1248.9,1.79925038]
[1672937203194,2.5,1249.0,1248.8,4.29925038]
[1672937203514,2.99997309,1248.9,1248.8,4.29925038]
[1672937206345,3.2078,1248.9,1248.7,1.79925038]
[1672937206559,6.2046644,1248.9,1248.7,1.79925038]
[1672937206871,2.9968644,1248.9,1248.7,1.79925038]
[1672937207080,2.9968644,1248.9,1248.7,4.29925038]
[1672937207284,2.9968644,1248.9,1248.8,2.5]
[1672937208869,5.4968644,1249.0,1248.8,2.5]
[1672937209190,2.9968644,1248.9,1248.8,2.5]
[1672937209604,2.5,1249.0,1248.8,2.5]
[1672937209605,5.4968644,1249.0,1248.8,2.5]
[1672937211504,5.4968644,1249.0,1248.7,12.31225038]
[1672937211715,5.4968644,1249.0,1248.8,3.69753058]
[1672937211917,5.4968644,1249.0,1248.9,2.5]
[1672937212444,2.5,1249.0,1248.8,2.5]
[1672937212657,2.99517185,1248.9,1248.8,2.5]
[1672937213288,5.49517185,1249.0,1248.8,2.5]
[1672937213816,2.99517185,1248.9,1248.8,2.5]
[1672937214229,5.49517185,1249.0,1248.8,2.5]
[1672937214436,5.49517185,1249.0,1248.8,3.69753058]
[1672937215285,5.49517185,1249.0,1248.8,2.5]
[1672937217383,5.49517185,1249.0,1248.8,3.69753058]
[1672937221385,2.99517185,1249.0,1248.8,3.69753058]
[1672937221597,5.49517185,1249.1,1248.8,5.49678096]
[1672937221803,5.49517185,1249.1,1248.9,4.40533058]
[1672937222121,5.49517185,1249.1,1249.0,2.5]
[1672937224644,2.99517185,1249.1,1249.0,2.5]
[1672937228006,2.99517185,1249.2,1249.0,5.49678096]
[1672937228214,2.5,1249.1,1249.0,5.49678096]
[1672937228417,2.99517185,1249.2,1249.0,5.49678096]
[1672937229160,2.99517185,1249.2,1249.0,3.69753058]
[1672937231370,2.99517185,1249.2,1249.0,5.49678096]
[1672937231688,2.99517185,1249.2,1249.0,3.69753058]
[1672937233048,2.99517185,1249.2,1249.0,8.70458096]
[1672937233773,2.99517185,1249.2,1249.0,6.90533058]
[1672937235258,2.99517185,1249.2,1249.0,8.70458096]
[1672937235994,2.99517185,1249.2,1249.0,6.90533058]
[1672937236833,2.99517185,1249.1,1249.0,6.90533058]
[1672937238305,2.99517185,1249.2,1249.0,6.90533058]
[1672937238517,2.5,1249.1,1249.0,6.90533058]
[1672937238719,5.49517185,1249.1,1249.0,6.90533058]
[1672937239358,5.49517185,1249.1,1249.0,2.5]
[1672937239882,5.49517185,1249.1,1249.0,3.69007786]
[1672937240200,5.49517185,1249.1,1249.0,2.49254728]
[1672937241042,2.99517185,1249.1,1249.0,3.69007786]
[1672937241565,2.99517185,1249.1,1249.0,6.89787786]
[1672937241770,2.5,1249.1,1249.0,6.89787786]
[1672937242400,2.5,1249.1,1249.0,3.69007786]
[1672937243562,2.99517185,1249.2,1249.0,3.69007786]
[1672937243876,2.99517185,1249.1,1249.0,3.69007786]
[1672937245557,2.99517185,1249.2,1249.0,3.69007786]
[1672937245773,2.5,1249.1,1249.0,3.69007786]
[1672937246508,5.49517185,1249.1,1249.0,3.69007786]
[1672937246930,2.99517185,1249.1,1249.0,3.69007786]
[1672937247137,2.99517185,1249.2,1249.0,3.69007786]
[1672937247349,5.49517185,1249.1,1249.0,3.69007786]
[1672937249237,5.49517185,1249.1,1249.0,2.49254728]
[1672937249970,5.49517185,1249.1,1249.0,3.69007786]
[1672937250176,2.99517185,1249.1,1249.0,3.69007786]
[1672937255542,2.99517185,1249.1,1249.0,1.19753058]
[1672937255752,5.49517185,1249.1,1249.0,1.19753058]
[1672937255963,2.5,1249.1,1248.9,8.70458096]
[1672937256175,2.99888734,1249.0,1248.9,3.69753058]
[1672937256383,2.99888734,1249.0,1248.9,5.49678096]
[1672937258481,2.99888734,1249.0,1248.9,4.29925038]
[1672937259113,2.99888734,1249.0,1248.9,5.49819467]
[1672937260369,9.3019827,1249.1,1248.9,5.49819467]
[1672937260580,3.00066525,1249.0,1248.9,5.49819467]
[1672937262374,3.00066525,1249.0,1248.9,4.29925038]
[1672937271203,3.00066525,1249.0,1248.9,5.49803376]
[1672937271414,3.00066525,1249.0,1248.9,4.29925038]
[1672937272570,3.00066525,1249.0,1248.9,6.69993693]
[1672937276146,3.00066525,1249.0,1248.9,6.31989346]
[1672937276358,3.00066525,1249.0,1248.9,4.90068655]
[1672937277195,3.00066525,1249.0,1248.9,6.69881711]
[1672937278137,3.00066525,1249.0,1248.9,4.29813056]
[1672937280661,3.00066525,1249.0,1248.9,6.69881711]
[1672937281401,3.00066525,1249.0,1248.9,4.90068655]
[1672937281819,3.00066525,1249.0,1248.9,6.69899392]
[1672937282455,3.00066525,1249.0,1248.9,4.90068655]
[1672937282667,3.00066525,1249.0,1248.9,6.69881447]
[1672937283606,3.00066525,1249.0,1248.9,4.29812792]
[1672937285605,3.00066525,1249.0,1248.9,1.79812792]
[1672937286753,3.00066525,1249.0,1248.9,4.19881447]
[1672937287281,3.00066525,1249.0,1248.9,4.19927118]
[1672937289173,3.00066525,1249.0,1248.9,1.79858463]
[1672937289493,3.00066525,1249.0,1248.9,4.19927118]
[1672937291807,5.50203054,1249.0,1248.9,4.19927118]
[1672937292233,5.50203054,1249.0,1248.9,2.40068655]
[1672937292445,3.00203054,1249.0,1248.9,2.40068655]
[1672937295068,5.50203054,1249.0,1248.9,2.40068655]
[1672937295283,2.5,1249.0,1248.9,1.7988944]
[1672937295593,2.5,1249.0,1248.9,4.19958095]
[1672937295801,3.5941827,1249.1,1249.0,2.5]
[1672937296009,3.5941827,1249.1,1249.0,3.6993379]
[1672937297171,3.5941827,1249.1,1249.0,1.1993379]
[1672937299374,6.8019827,1249.1,1249.0,1.1993379]
[1672937302739,3.5941827,1249.1,1249.0,1.1993379]
[1672937306941,3.5941827,1249.1,1249.0,5.4982323]
[1672937308311,3.5941827,1249.1,1249.0,3.6993379]
[1672937308513,3.5941827,1249.1,1249.0,1.1993379]
[1672937312938,3.5941827,1249.1,1248.9,2.9982323]
[1672937313251,3.5941827,1249.1,1249.0,1.1993379]
[1672937313458,3.5941827,1249.1,1248.9,2.9982323]
[1672937313663,3.5941827,1249.1,1249.0,1.1993379]
[1672937316298,3.5941827,1249.1,1249.0,3.6993379]
[1672937317140,3.5941827,1249.1,1249.0,5.4982323]
[1672937317345,3.5941827,1249.1,1249.0,3.6993379]
[1672937321553,3.5941827,1249.1,1248.9,2.99372471]
[1672937321760,3.5941827,1249.0,1248.9,1.19483031]
[1672937322286,6.0941827,1249.0,1248.9,1.19483031]
[1672937322922,6.0941827,1249.0,1248.9,2.99372471]
[1672937323869,6.0941827,1249.0,1248.9,1.19483031]
[1672937324187,2.5,1249.0,1248.9,2.99372471]
[1672937324389,2.5,1249.0,1248.9,1.7988944]
[1672937325332,3.00191982,1249.0,1248.9,1.7988944]
[1672937325542,6.00380589,1249.0,1248.9,1.7988944]
[1672937325754,3.00191982,1249.0,1248.9,1.7988944]
[1672937326075,6.0037849,1249.0,1248.9,1.7988944]
[1672937327018,9.00565712,1249.0,1248.9,1.7988944]
[1672937329756,11.50565712,1249.0,1248.9,1.7988944]
[1672937331542,15.09983982,1249.0,1248.8,4.19958095]
[1672937331753,5.50181345,1248.9,1248.8,4.19958095]
[1672937332168,5.50181345,1248.9,1248.8,4.19952243]
[1672937332488,5.50181345,1248.9,1248.8,2.40068655]
[1672937332797,3.00181345,1248.9,1248.8,2.40068655]
[1672937333011,3.00181345,1248.9,1248.8,3.82003175]
[1672937333223,5.50181345,1248.9,1248.8,3.82003175]
[1672937333633,5.50181345,1248.9,1248.8,3.82004534]
[1672937334169,3.00181345,1248.9,1248.8,3.82004534]
[1672937336163,2.40135409,1248.9,1248.8,6.82104526]
[1672937336374,4.90135409,1248.9,1248.8,4.42035871]
[1672937336585,2.40135409,1248.9,1248.8,4.42035871]
[1672937337215,2.40135409,1248.9,1248.8,6.81922301]
[1672937337421,2.40135409,1248.9,1248.8,4.42035871]
[1672937337631,2.40135409,1248.9,1248.8,6.81947162]
[1672937338260,5.40303016,1248.9,1248.8,3.8184717]
[1672937338582,2.40135409,1248.9,1248.8,6.81947162]
[1672937338784,5.40303772,1248.9,1248.8,3.8184717]
[1672937339531,5.40307276,1248.9,1248.8,3.8184717]
[1672937339740,3.00168363,1248.9,1248.8,3.8184717]